fUST/lending_fUST_20250923
["ID","MTS","AMOUNT","RATE_DAILY","PERIOD"]
[387100480,1758575451480,-480.0,0.00019452,2]
[387100482,1758575451491,-480.0,0.00019452,2]
[387100484,1758575451501,-480.0,0.00019452,2]
[387100486,1758575451511,-480.0,0.00019452,2]
[387100488,1758575451522,-480.0,0.00019452,2]
[387100490,1758575451532,-480.0,0.00019452,2]
[387100493,1758575451543,-1213.74,0.00019452,2]
[387100495,1758575451553,-480.0,0.00019452,2]
[387100497,1758575451564,-500.0,0.00019452,2]
[387100499,1758575451574,-500.0,0.00019473,2]
[387100500,1758575451584,-400.37286141,0.00019473,2]
[387100502,1758575451595,-500.0,0.00019473,2]
[387100504,1758575451605,-300.5802302,0.00019473,2]
[387100506,1758575451614,-500.8174806,0.00019473,2]
[387100508,1758575451625,-327.39020075,0.00019473,2]
[387100510,1758575451634,-496.19841798,0.00019473,2]
[387100512,1758575451644,-500.0,0.00019473,2]
[387100514,1758575451654,-507.20091411,0.00019473,2]
[387100516,1758575451664,-500.0,0.00019473,2]
[387100518,1758575451675,-471.78378635,0.00019533,2]
[387100521,1758575451688,-1887.13514538,0.00019533,2]
[387100523,1758575451698,-4241.80802303,0.00019533,2]
[387100525,1758575451709,-1232.52413992,0.00019655,2]
[387100527,1758575451720,-1149.52,0.0001972,2]
[387100529,1758575451731,-1149.52,0.0001972,2]
[387100531,1758575451740,-1149.52,0.0001972,2]
[387100532,1758575451751,-1149.52,0.0001972,2]
[387100534,1758575451761,-1149.69118271,0.0001972,2]
[387100537,1758575451771,-1000.0,0.00019721,2]
[387100539,1758575451781,-1000.0,0.00019721,2]
[387100540,1758575451791,-1000.0,0.00019721,2]
[387100543,1758575451801,-990.18785629,0.00019721,2]
[387100545,1758575451812,-844.50483429,0.00019721,2]
[387100547,1758575451824,-500.0,0.00019721,2]
[387100549,1758575451834,-1000.0,0.00019721,2]
[387100550,1758575451844,-151.0,0.00019726,2]
[387100553,1758575451855,-176.0012702,0.00019726,2]
[387100555,1758575451867,-151.0,0.00019726,2]
[387100557,1758575451877,-500.0,0.00019726,2]
[387100559,1758575451887,-480.0,0.00019726,2]
[387100561,1758575451897,-340.2656274,0.00019726,2]
[387100563,1758575451907,-480.0,0.00019726,2]
[387100565,1758575451918,-192.7096624,0.00019726,2]
[387100567,1758575451929,-500.0,0.00019726,2]
[387100569,1758575451939,-480.0,0.00019726,2]
[387100571,1758575451949,-466.47718851,0.00019726,2]
[387100573,1758575451959,-480.0,0.00019726,2]
[387100575,1758575451969,-480.0,0.00019726,2]
[387100576,1758575451980,-480.0,0.00019726,2]
[387100578,1758575451990,-480.0,0.00019726,2]
[387100581,1758575452000,-480.0,0.00019726,2]
[387100583,1758575452011,-480.0,0.00019726,2]
[387100584,1758575452020,-541.14961515,0.00019726,2]
[387100586,1758575452031,-480.0,0.00019726,2]
[387100588,1758575452041,-480.0,0.00019726,2]
[387100590,1758575452051,-480.0,0.00019726,2]
[387100592,1758575452061,-480.0,0.00019726,2]
[387100594,1758575452071,-468.84797771,0.00019726,2]
[387100596,1758575452083,-480.0,0.00019726,2]
[387100598,1758575452093,-480.0,0.00019726,2]
[387100600,1758575452103,-434.62658245,0.00019726,2]
[387100602,1758575452113,-480.0,0.00019726,2]
[387100604,1758575452124,-480.0,0.00019726,2]
[387100606,1758575452134,-480.0,0.00019726,2]
[387100608,1758575452145,-480.0,0.00019726,2]
[387100610,1758575452155,-480.0,0.00019726,2]
[387100612,1758575452166,-480.0,0.00019726,2]
[387100614,1758575452176,-480.0,0.00019726,2]
[387100616,1758575452187,-480.0,0.00019726,2]
[387100618,1758575452197,-480.0,0.00019726,2]
[387100620,1758575452207,-480.0,0.00019726,2]
[387100622,1758575452218,-480.0,0.00019726,2]
[387100624,1758575452228,-480.0,0.00019726,2]
[387100625,1758575452238,-480.0,0.00019726,2]
[387100626,1758575452248,-480.0,0.00019726,2]
[387100627,1758575452258,-480.0,0.00019726,2]
[387100628,1758575452268,-480.0,0.00019726,2]
[387100629,1758575452279,-480.0,0.00019726,2]
[387100630,1758575452289,-477.57271838,0.00019726,2]
[387100631,1758575452299,-471.56,0.00019726,2]
[387100632,1758575452309,-480.0,0.00019726,2]
[387100633,1758575452319,-480.0,0.00019726,2]
[387100634,1758575452330,-480.0,0.00019726,2]
[387100635,1758575452340,-480.0,0.00019726,2]
[387100636,1758575452350,-480.0,0.00019726,2]
[387100637,1758575452360,-607.51,0.00019726,2]
[387100638,1758575452370,-480.0,0.00019726,2]
[387100639,1758575452380,-480.0,0.00019726,2]
[387100640,1758575452390,-480.0,0.00019726,2]
[387100641,1758575452401,-480.0,0.00019726,2]
[387100642,1758575452411,-480.0,0.00019726,2]
[387100643,1758575452421,-480.0,0.00019726,2]
[387100644,1758575452431,-480.0,0.00019726,2]
[387100645,1758575452441,-512.77491853,0.00019726,2]
[387100646,1758575452545,-2588.32,0.00019726,2]
[387100647,1758575452556,-480.0,0.00019726,2]
[387100648,1758575452567,-480.0,0.00019726,2]
[387100650,1758575452577,-480.0,0.00019726,2]
[387100651,1758575452587,-480.0,0.00019726,2]
[387100652,1758575452597,-480.0,0.00019726,2]
[387100653,1758575452607,-510.3,0.00019726,2]
[387100654,1758575452617,-480.0,0.00019726,2]
[387100655,1758575452627,-480.0,0.00019726,2]
[387100656,1758575452637,-480.0,0.00019726,2]
[387100657,1758575452647,-480.0,0.00019726,2]
[387100658,1758575452657,-480.0,0.00019726,2]
[387100659,1758575452667,-774.52,0.00019726,2]
[387100660,1758575452677,-480.0,0.00019726,2]
[387100661,1758575452687,-480.0,0.00019726,2]
[387100662,1758575452697,-480.0,0.00019726,2]
[387100664,1758575452707,-480.0,0.00019726,2]
[387100666,1758575452717,-484.08,0.00019726,2]
[387100667,1758575452727,-480.0,0.00019726,2]
[387100669,1758575452737,-480.0,0.00019726,2]
[387100670,1758575452747,-480.0,0.00019726,2]
[387100671,1758575452758,-480.0,0.00019726,2]
[387100673,1758575452768,-480.0,0.00019726,2]
[387100675,1758575452778,-480.0,0.00019726,2]
[387100677,1758575452788,-480.0,0.00019726,2]
[387100679,1758575452799,-480.0,0.00019726,2]
[387100681,1758575452809,-480.0,0.00019726,2]
[387100683,1758575452820,-480.0,0.00019726,2]
[387100685,1758575452829,-750.6,0.00019726,2]
[387100687,1758575452839,-480.0,0.00019726,2]
[387100689,1758575452848,-552.44,0.00019726,2]
[387100691,1758575452858,-462.48,0.00019726,2]
[387100693,1758575452867,-480.0,0.00019726,2]
[387100695,1758575452877,-480.0,0.00019726,2]
[387100697,1758575452887,-480.0,0.00019726,2]
[387100699,1758575452897,-480.0,0.00019726,2]
[387100701,1758575452907,-480.0,0.00019726,2]
[387100703,1758575452918,-480.0,0.00019726,2]
[387100705,1758575452929,-480.0,0.00019726,2]
[387100707,1758575452939,-480.0,0.00019726,2]
[387100709,1758575452950,-592.49,0.00019726,2]
[387100711,1758575452960,-480.0,0.00019726,2]
[387100713,1758575452970,-333.64,0.00019726,2]
[387100715,1758575452981,-507.68903961,0.00019726,2]
[387100717,1758575452991,-671.22,0.00019726,2]
[387100719,1758575453002,-480.0,0.00019726,2]
[387100721,1758575453012,-480.0,0.00019726,2]
[387100723,1758575453023,-480.0,0.00019726,2]
[387100725,1758575453033,-480.0,0.00019726,2]
[387100727,1758575453044,-480.0,0.00019726,2]
[387100729,1758575453054,-480.0,0.00019726,2]
[387100731,1758575453065,-480.0,0.00019726,2]
[387100733,1758575453076,-480.0,0.00019726,2]
[387100735,1758575453087,-1394.59,0.00019726,2]
[387100737,1758575453097,-480.0,0.00019726,2]
[387100739,1758575453107,-480.0,0.00019726,2]
[387100741,1758575453117,-480.0,0.00019726,2]
[387100743,1758575453126,-480.0,0.00019726,2]
[387100745,1758575453136,-489.62,0.00019726,2]
[387100747,1758575453145,-480.0,0.00019726,2]
[387100749,1758575453155,-480.0,0.00019726,2]
[387100751,1758575453165,-5436.76,0.00019726,2]
[387100753,1758575453176,-480.0,0.00019726,2]
[387100755,1758575453186,-480.0,0.00019726,2]
[387100757,1758575453196,-480.0,0.00019726,2]
[387100759,1758575453205,-535.97,0.00019726,2]
[387100761,1758575453215,-480.0,0.00019726,2]
[387100763,1758575453226,-480.0,0.00019726,2]
[387100765,1758575453236,-193.03,0.00019726,2]
[387100767,1758575453247,-480.0,0.00019726,2]
[387100769,1758575453258,-485.51293316,0.00019726,2]
[387100771,1758575453269,-151.12409878,0.00019726,2]
[387100773,1758575453279,-480.0,0.00019726,2]
[387100775,1758575453288,-1213.74,0.00019726,2]
[387100777,1758575453298,-586.99381471,0.00019726,2]
[387100779,1758575453308,-3909.9139727,0.000199,2]
[387100781,1758575453318,-500.0,0.0002,2]
[387100783,1758575453328,-488.50494332,0.0002,2]
[387100785,1758575453338,-480.0,0.0002,2]
[387100787,1758575453347,-480.0,0.0002,2]
[387100789,1758575453358,-441.75491118,0.0002,2]
[387100791,1758575453368,-480.0,0.0002,2]
[387100793,1758575453378,-480.0,0.0002,2]
[387100795,1758575453387,-480.0,0.0002,2]
[387100797,1758575453396,-480.0,0.0002,2]
[387100799,1758575453406,-480.0,0.0002,2]
[387100801,1758575453416,-480.0,0.0002,2]
[387100803,1758575453427,-480.0,0.0002,2]
[387100805,1758575453437,-347.45295051,0.0002,2]
[387100807,1758575453450,-480.0,0.0002,2]
[387100809,1758575453460,-480.0,0.0002,2]
[387100811,1758575453470,-480.0,0.0002,2]
[387100813,1758575453480,-480.0,0.0002,2]
[387100815,1758575453491,-480.0,0.0002,2]
[387100817,1758575453501,-480.0,0.0002,2]
[387100819,1758575453511,-480.0,0.0002,2]
[387100821,1758575453521,-480.0,0.0002,2]
[387100823,1758575453532,-480.0,0.0002,2]
[387100825,1758575453542,-480.0,0.0002,2]
[387100827,1758575453551,-480.0,0.0002,2]
[387100829,1758575453561,-480.0,0.0002,2]
[387100831,1758575453571,-480.0,0.0002,2]
[387100833,1758575453581,-480.0,0.0002,2]
[387100835,1758575453591,-480.0,0.0002,2]
[387100837,1758575453602,-480.0,0.0002,2]
[387100839,1758575453612,-480.0,0.0002,2]
[387100841,1758575453622,-480.0,0.0002,2]
[387100843,1758575453632,-480.0,0.0002,2]
[387100845,1758575453642,-480.0,0.0002,2]
[387100847,1758575453651,-480.0,0.0002,2]
[387100849,1758575453661,-2588.32,0.0002,2]
[387100851,1758575453671,-480.0,0.0002,2]
[387100853,1758575453680,-480.0,0.0002,2]
[387100855,1758575453690,-480.0,0.0002,2]
[387100857,1758575453699,-510.3,0.0002,2]
[387100859,1758575453708,-480.0,0.0002,2]
[387100861,1758575453718,-480.0,0.0002,2]
[387100863,1758575453728,-480.0,0.0002,2]
[387100864,1758575453737,-480.0,0.0002,2]
[387100866,1758575453747,-480.0,0.0002,2]
[387100868,1758575453757,-774.52,0.0002,2]
[387100870,1758575453768,-480.0,0.0002,2]
[387100873,1758575453778,-344.97,0.0002,2]
[387100874,1758575453788,-480.0,0.0002,2]
[387100877,1758575453798,-480.0,0.0002,2]
[387100879,1758575453808,-484.08,0.0002,2]
[387100881,1758575453820,-480.0,0.0002,2]
[387100882,1758575453831,-480.0,0.0002,2]
[387100884,1758575453840,-480.0,0.0002,2]
[387100886,1758575453850,-480.0,0.0002,2]
[387100888,1758575453859,-480.0,0.0002,2]
[387100890,1758575453871,-480.0,0.0002,2]
[387100893,1758575453881,-480.0,0.0002,2]
[387100894,1758575453892,-480.0,0.0002,2]
[387100896,1758575453902,-480.0,0.0002,2]
[387100898,1758575453911,-480.0,0.0002,2]
[387100900,1758575453920,-750.6,0.0002,2]
[387100902,1758575453930,-480.0,0.0002,2]
[387100904,1758575453940,-552.44,0.0002,2]
[387100906,1758575453950,-480.0,0.0002,2]
[387100908,1758575453959,-480.0,0.0002,2]
[387100910,1758575453969,-480.0,0.0002,2]
[387100912,1758575453978,-480.0,0.0002,2]
[387100914,1758575453989,-480.0,0.0002,2]
[387100917,1758575453999,-480.0,0.0002,2]
[387100919,1758575454008,-480.0,0.0002,2]
[387100921,1758575454018,-480.0,0.0002,2]
[387100923,1758575454028,-671.22,0.0002,2]
[387100924,1758575454038,-480.0,0.0002,2]
[387100927,1758575454049,-480.0,0.0002,2]
[387100928,1758575454060,-480.0,0.0002,2]
[387100931,1758575454071,-480.0,0.0002,2]
[387100933,1758575454081,-480.0,0.0002,2]
[387100935,1758575454091,-480.0,0.0002,2]
[387100937,1758575454102,-480.0,0.0002,2]
[387100939,1758575454111,-1394.59,0.0002,2]
[387100940,1758575454121,-480.0,0.0002,2]
[387100943,1758575454131,-480.0,0.0002,2]
[387100944,1758575454141,-480.0,0.0002,2]
[387100946,1758575454151,-480.0,0.0002,2]
[387100949,1758575454162,-489.62,0.0002,2]
[387100950,1758575454171,-285.47,0.0002,2]
[387100953,1758575454181,-480.0,0.0002,2]
[387100954,1758575454191,-5436.76,0.0002,2]
[387100956,1758575454201,-480.0,0.0002,2]
[387100958,1758575454211,-480.0,0.0002,2]
[387100960,1758575454221,-480.0,0.0002,2]
[387100962,1758575454231,-535.97,0.0002,2]
[387100964,1758575454241,-480.0,0.0002,2]
[387100966,1758575454251,-440.664719,0.0002,2]
[387100968,1758575454262,-480.0,0.0002,2]
[387100970,1758575454272,-480.0,0.0002,2]
[387100972,1758575454281,-1213.74,0.0002,2]
[387100974,1758575454291,-1000.0,0.00020021,2]
[387100976,1758575454300,-1500.0,0.00020268,2]
[387100978,1758575454310,-1500.0,0.00020268,2]
[387100980,1758575454319,-1000.0,0.00020268,2]
[387100982,1758575454328,-1500.0,0.00020268,2]
[387100984,1758575454337,-200.0,0.00020272,2]
[387100986,1758575454347,-480.0,0.00020273,2]
[387100988,1758575454356,-480.0,0.00020273,2]
[387100990,1758575454366,-480.0,0.00020273,2]
[387100992,1758575454375,-480.0,0.00020273,2]
[387100994,1758575454384,-480.0,0.00020273,2]
[387100996,1758575454395,-480.0,0.00020273,2]
[387100998,1758575454403,-566.97373539,0.00020273,2]
[387100999,1758575454413,-480.0,0.00020273,2]
[387101001,1758575454423,-397.81417535,0.00020273,2]
[387101004,1758575454432,-480.0,0.00020273,2]
[387101005,1758575454441,-480.0,0.00020273,2]
[387101007,1758575454451,-480.0,0.00020273,2]
[387101010,1758575454461,-427.9617892,0.00020273,2]
[387101012,1758575454471,-480.0,0.00020273,2]
[387101014,1758575454480,-480.0,0.00020273,2]
[387101016,1758575454490,-480.0,0.00020273,2]
[387101018,1758575454499,-480.0,0.00020273,2]
[387101020,1758575454509,-186.26879922,0.00020273,2]
[387101022,1758575454519,-480.0,0.00020273,2]
[387101024,1758575454529,-406.81,0.00020273,2]
[387101026,1758575454539,-273.33,0.00020273,2]
[387101028,1758575454548,-480.0,0.00020273,2]
[387101030,1758575454558,-599.42,0.00020273,2]
[387101032,1758575454568,-2588.32,0.00020273,2]
[387101034,1758575454577,-480.0,0.00020273,2]
[387101036,1758575454586,-480.0,0.00020273,2]
[387101038,1758575454595,-86.17005533,0.00020273,2]
[387102157,1758575522259,300.0,0.00018977,2]
[387102158,1758575551831,256.26939365,0.00018977,2]
[387102159,1758575551871,440.38748642,0.00018977,2]
[387102160,1758575551912,500.0,0.00018977,2]
[387102161,1758575551990,500.0,0.00018977,2]
[387102162,1758575552067,500.0,0.00018977,2]
[387102163,1758575552100,500.0,0.00018977,2]
[387102164,1758575552293,500.0,0.00018977,2]
[387102165,1758575552359,500.0,0.00018977,2]
[387102166,1758575552519,500.0,0.00018977,2]
[387102167,1758575552726,500.0,0.00018977,2]
[387102168,1758575552799,500.0,0.00018977,2]
[387102169,1758575552831,403.28616644,0.00018977,2]
[387102170,1758575552864,500.0,0.00018977,2]
[387102171,1758575555622,500.0,0.00018977,2]
[387102172,1758575555656,500.0,0.00018977,2]
[387102173,1758575555684,479.16241482,0.00018977,2]
[387102174,1758575555712,500.0,0.00018977,2]
[387102175,1758575555747,505.03276628,0.00018977,2]
[387102176,1758575555776,500.0,0.00018977,2]
[387102177,1758575555814,371.17940535,0.00018977,2]
[387102178,1758575569593,244.69236704,0.00018977,2]
[387102179,1758575569618,255.30763296,0.00018977,2]
[387102180,1758575569700,500.0,0.00018977,2]
[387102181,1758575569858,350.0,0.00018977,2]
[387102182,1758575582395,300.0,0.00018977,2]
[387102183,1758575642237,300.0,0.00018977,2]
[387102184,1758575701381,300.0,0.00018977,2]
[387102185,1758575701936,300.0,0.00018977,2]
[387102186,1758575701985,300.0,0.00018977,2]
[387102187,1758575702035,300.0,0.00018977,2]
[387102188,1758575702663,300.0,0.00018977,2]
[387102189,1758575704120,161.0,8e-07,2]
[387102190,1758575705280,161.0,8e-07,2]
[387102191,1758575706473,161.0,8e-07,2]
[387102192,1758575707584,161.0,8e-07,2]
[387102193,1758575707756,1200.0,0.00018977,2]
[387102194,1758575708627,161.0,8e-07,2]
[387102195,1758575710079,-7200.8641087,0.00018978,2]
[387102196,1758575710094,-10000.01,0.00018978,2]
[387102197,1758575710192,-10000.01,0.00018978,2]
[387102200,1758575762866,300.0,0.00018977,2]
[387102201,1758575822856,300.0,0.00018977,2]
[387102202,1758575882543,300.0,0.00018977,2]
[387102203,1758575942357,300.0,0.00018977,2]
[387102204,1758576002294,300.0,0.00018977,2]
[387102205,1758576017121,3699.7880384,0.00018505,2]
[387102207,1758576062490,300.0,0.00018977,2]
[387102208,1758576122818,300.0,0.00018977,2]
[387102209,1758576242615,300.0,0.00018977,2]
[387102210,1758576302137,300.0,0.00018977,2]
[387102213,1758576362773,300.0,0.00018977,2]
[387102214,1758576420519,-3300.2219616,0.00018978,2]
[387102215,1758576420569,-10000.01,0.00018978,2]
[387102216,1758576420730,-10000.01,0.00018978,2]
[387102217,1758576420861,-10000.01,0.00018978,2]
[387102218,1758576420983,-10000.01,0.00018978,2]
[387102219,1758576421107,-10000.01,0.00018978,2]
[387102268,1758576632257,-453.0,0.00018978,2]
[387102269,1758576632270,-3543.26104678,0.00018978,2]
[387102271,1758576632280,-300.0,0.00018999,2]
[387102273,1758576632289,-837.46920951,0.00019,2]
[387102274,1758576632299,-3346.5269612,0.00019,2]
[387102275,1758576632308,-152.35326726,0.00019081,2]
[387102277,1758576632317,-25202.76412179,0.00019082,2]
[387102470,1758576640252,-683.83074761,0.00019082,2]
[387102471,1758576640261,-308.27124049,0.00019176,2]
[387102472,1758576640270,-179.38857555,0.00019176,2]
[387102473,1758576640279,-500.0,0.00019176,2]
[387102474,1758576640289,-377.30031651,0.00019176,2]
[387102475,1758576640300,-500.0,0.00019176,2]
[387102476,1758576640317,-500.0,0.00019176,2]
[387102477,1758576640327,-500.0,0.00019176,2]
[387102478,1758576640337,-500.0,0.00019176,2]
[387102479,1758576640346,-500.0,0.00019176,2]
[387102480,1758576640355,-500.0,0.00019176,2]
[387102481,1758576640365,-500.0,0.00019176,2]
[387102482,1758576640374,-500.0,0.00019176,2]
[387102483,1758576640384,-480.0,0.00019178,2]
[387102484,1758576640393,-482.87,0.00019178,2]
[387102485,1758576640402,-480.0,0.00019178,2]
[387102486,1758576640412,-480.0,0.00019178,2]
[387102487,1758576640421,-480.0,0.00019178,2]
[387102488,1758576640430,-528.61,0.00019178,2]
[387102489,1758576640440,-480.0,0.00019178,2]
[387102490,1758576640449,-490.62147133,0.00019178,2]
[387102491,1758576640458,-480.0,0.00019178,2]
[387102492,1758576640467,-485.69215707,0.00019178,2]
[387102493,1758576640476,-151.93184629,0.00019178,2]
[387102494,1758576640485,-480.0,0.00019178,2]
[387102495,1758576640495,-484.83674945,0.00019178,2]
[387102496,1758576640504,-480.0,0.00019178,2]
[387102497,1758576640514,-480.0,0.00019178,2]
[387102498,1758576640523,-480.0,0.00019178,2]
[387102499,1758576640533,-480.0,0.00019178,2]
[387102500,1758576640542,-480.0,0.00019178,2]
[387102501,1758576640551,-480.0,0.00019178,2]
[387102502,1758576640560,-480.0,0.00019178,2]
[387102503,1758576640569,-528.51478704,0.00019178,2]
[387102504,1758576640578,-480.0,0.00019178,2]
[387102505,1758576640587,-480.0,0.00019178,2]
[387102506,1758576640596,-480.0,0.00019178,2]
[387102507,1758576640605,-480.0,0.00019178,2]
[387102508,1758576640615,-533.22894669,0.00019178,2]
[387102509,1758576640623,-480.0,0.00019178,2]
[387102510,1758576640632,-480.0,0.00019178,2]
[387102511,1758576640642,-480.0,0.00019178,2]
[387102512,1758576640651,-196.85088082,0.00019178,2]
[387102513,1758576640660,-500.0,0.00019178,2]
[387102514,1758576640669,-407.12969967,0.00019178,2]
[387102515,1758576640678,-480.0,0.00019178,2]
[387102516,1758576640686,-480.0,0.00019178,2]
[387102517,1758576640694,-480.0,0.00019178,2]
[387102518,1758576640702,-480.0,0.00019178,2]
[387102519,1758576640710,-480.0,0.00019178,2]
[387102520,1758576640717,-480.0,0.00019178,2]
[387102521,1758576640725,-480.0,0.00019178,2]
[387102522,1758576640734,-494.20644913,0.00019178,2]
[387102523,1758576640741,-480.0,0.00019178,2]
[387102524,1758576640751,-370.86588305,0.00019178,2]
[387102525,1758576640760,-169.48,0.00019178,2]
[387102526,1758576640770,-481.82524421,0.00019178,2]
[387102527,1758576640778,-480.0,0.00019178,2]
[387102528,1758576640788,-480.0,0.00019178,2]
[387102529,1758576640797,-480.0,0.00019178,2]
[387102530,1758576640807,-480.88721694,0.00019178,2]
[387102531,1758576640816,-324.22092329,0.00019178,2]
[387102532,1758576640825,-480.0,0.00019178,2]
[387102533,1758576640838,-480.0,0.00019178,2]
[387102534,1758576640847,-436.18226767,0.00019178,2]
[387102535,1758576640857,-163.145031,0.00019178,2]
[387102536,1758576640867,-480.0,0.00019178,2]
[387102537,1758576640876,-480.0,0.00019178,2]
[387102538,1758576640885,-504.52477876,0.00019178,2]
[387102539,1758576640894,-699.38,0.00019178,2]
[387102540,1758576640904,-490.49,0.00019178,2]
[387102541,1758576640913,-2157.74,0.00019178,2]
[387102542,1758576640923,-480.0,0.00019178,2]
[387102543,1758576640932,-480.0,0.00019178,2]
[387102544,1758576640942,-480.0,0.00019178,2]
[387102545,1758576640951,-480.0,0.00019178,2]
[387102546,1758576640960,-260.18966095,0.00019178,2]
[387102547,1758576640969,-480.0,0.00019178,2]
[387102548,1758576640978,-480.0,0.00019178,2]
[387102549,1758576640987,-480.0,0.00019178,2]
[387102550,1758576640996,-480.0,0.00019178,2]
[387102551,1758576641006,-480.0,0.00019178,2]
[387102552,1758576641016,-480.0,0.00019178,2]
[387102553,1758576641025,-480.0,0.00019178,2]
[387102554,1758576641033,-480.0,0.00019178,2]
[387102555,1758576641043,-480.0,0.00019178,2]
[387102556,1758576641052,-480.0,0.00019178,2]
[387102557,1758576641061,-480.0,0.00019178,2]
[387102558,1758576641070,-480.0,0.00019178,2]
[387102559,1758576641079,-486.67964897,0.00019178,2]
[387102560,1758576641088,-480.0,0.00019178,2]
[387102561,1758576641097,-480.0,0.00019178,2]
[387102562,1758576641106,-480.0,0.00019178,2]
[387102563,1758576641115,-480.0,0.00019178,2]
[387102564,1758576641124,-354.56,0.00019178,2]
[387102565,1758576641133,-480.0,0.00019178,2]
[387102566,1758576641142,-495.62,0.00019178,2]
[387102567,1758576641151,-480.0,0.00019178,2]
[387102568,1758576641161,-480.0,0.00019178,2]
[387102569,1758576641171,-480.0,0.00019178,2]
[387102570,1758576641180,-480.0,0.00019178,2]
[387102571,1758576641189,-675.25,0.00019178,2]
[387102572,1758576641199,-480.0,0.00019178,2]
[387102573,1758576641208,-480.0,0.00019178,2]
[387102574,1758576641217,-480.0,0.00019178,2]
[387102575,1758576641226,-480.0,0.00019178,2]
[387102576,1758576641235,-480.0,0.00019178,2]
[387102577,1758576641244,-480.0,0.00019178,2]
[387102578,1758576641253,-480.0,0.00019178,2]
[387102579,1758576641262,-480.0,0.00019178,2]
[387102580,1758576641271,-480.0,0.00019178,2]
[387102581,1758576641280,-480.0,0.00019178,2]
[387102582,1758576641289,-480.0,0.00019178,2]
[387102583,1758576641299,-480.0,0.00019178,2]
[387102584,1758576641307,-480.0,0.00019178,2]
[387102585,1758576641317,-480.0,0.00019178,2]
[387102586,1758576641326,-621.28543836,0.00019178,2]
[387102587,1758576641338,-480.0,0.00019178,2]
[387102588,1758576641347,-480.0,0.00019178,2]
[387102589,1758576641356,-1227.51,0.00019178,2]
[387102590,1758576641365,-595.89,0.00019178,2]
[387102591,1758576641374,-480.0,0.00019178,2]
[387102592,1758576641384,-480.0,0.00019178,2]
[387102593,1758576641393,-480.0,0.00019178,2]
[387102594,1758576641401,-480.0,0.00019178,2]
[387102595,1758576641410,-480.0,0.00019178,2]
[387102596,1758576641419,-480.0,0.00019178,2]
[387102597,1758576641428,-480.0,0.00019178,2]
[387102598,1758576641438,-480.0,0.00019178,2]
[387102599,1758576641446,-480.0,0.00019178,2]
[387102600,1758576641455,-4880.88,0.00019178,2]
[387102601,1758576641464,-480.0,0.00019178,2]
[387102602,1758576641473,-516.48807135,0.00019178,2]
[387102603,1758576641483,-480.0,0.00019178,2]
[387102604,1758576641492,-480.0,0.00019178,2]